[Event "Late-Titled-Tuesday-Blitz-February-27-2024"]
[Site "Chess.com"]
[Date "2024.02.27"]
[Round "1"]
[White "FairChess_on_YouTube"]
[Black "Nouali_Mohamed"]
[Result "1-0"]
[WhiteElo "3109"]
[BlackElo "2524"]
[TimeControl "180+1"]
[EndTime "14:05:51 PST"]
[Termination "FairChess_on_YouTube won by resignation"]

1. c4 {[%clk 0:03:00.9]} 1... Nf6 {[%clk 0:02:52]} 2. Nc3 {[%clk 0:03:00.9]}
2... g6 {[%clk 0:02:52.5]} 3. e4 {[%clk 0:03:00.1]} 3... d6 {[%clk 0:02:53]} 4.
d4 {[%clk 0:03:00.2]} 4... Bg7 {[%clk 0:02:52.8]} 5. h3 {[%clk 0:02:59.7]} 5...
O-O {[%clk 0:02:53]} 6. Be3 {[%clk 0:03:00.3]} 6... c5 {[%clk 0:02:52.7]} 7. Nf3
{[%clk 0:02:59.7]} 7... cxd4 {[%clk 0:02:51.6]} 8. Nxd4 {[%clk 0:03:00.6]} 8...
Nc6 {[%clk 0:02:52.1]} 9. Be2 {[%clk 0:02:59.6]} 9... Nxd4 {[%clk 0:02:52.3]}
10. Bxd4 {[%clk 0:03:00.5]} 10... Be6 {[%clk 0:02:53.1]} 11. O-O {[%clk
0:03:00.5]} 11... Qa5 {[%clk 0:02:53.5]} 12. Rc1 {[%clk 0:02:58]} 12... Rfc8
{[%clk 0:02:51.9]} 13. b3 {[%clk 0:02:58]} 13... a6 {[%clk 0:02:52.2]} 14. Bf3
{[%clk 0:02:57.5]} 14... Rab8 {[%clk 0:02:50.7]} 15. Re1 {[%clk 0:02:57.6]}
15... b5 {[%clk 0:02:28.8]} 16. e5 {[%clk 0:02:57]} 16... dxe5 {[%clk
0:02:21.2]} 17. Bxe5 {[%clk 0:02:57.9]} 17... Rd8 {[%clk 0:02:21.6]} 18. Qe2
{[%clk 0:02:41]} 18... Rbc8 {[%clk 0:02:06.5]} 19. cxb5 {[%clk 0:02:40.8]} 19...
axb5 {[%clk 0:02:00.5]} 20. Qxb5 {[%clk 0:02:41.7]} 20... Qa7 {[%clk 0:01:47.3]}
21. Qb7 {[%clk 0:02:28]} 21... Qa3 {[%clk 0:01:41]} 22. Rcd1 {[%clk 0:02:16.8]}
22... h5 {[%clk 0:01:24.6]} 23. Rxd8+ {[%clk 0:01:51.1]} 23... Rxd8 {[%clk
0:01:24.3]} 24. Qb6 {[%clk 0:01:51]} 24... Rd2 {[%clk 0:01:19.8]} 25. Qe3 {[%clk
0:01:50.3]} 25... Rb2 {[%clk 0:00:55.8]} 26. Qc1 {[%clk 0:01:41.2]} 26... Rxa2
{[%clk 0:00:46.8]} 27. Nxa2 {[%clk 0:01:40.1]} 27... Qxa2 {[%clk 0:00:47.7]} 28.
b4 {[%clk 0:01:39.5]} 28... Bc4 {[%clk 0:00:31.2]} 29. Qc3 {[%clk 0:01:36.6]}
29... Bb5 {[%clk 0:00:25.3]} 30. Qc5 {[%clk 0:01:33.8]} 30... Qc4 {[%clk
0:00:13.4]} 31. Qxe7 {[%clk 0:01:31.4]} 1-0

[Event "Late-Titled-Tuesday-Blitz-February-27-2024"]
[Site "Chess.com"]
[Date "2024.02.27"]
[Round "1"]
[White "jcibarra"]
[Black "PositionalPanther"]
[Result "1-0"]
[WhiteElo "2937"]
[BlackElo "2501"]
[TimeControl "180+1"]
[EndTime "14:05:55 PST"]
[Termination "jcibarra won by resignation"]

1. e4 {[%clk 0:03:00.9]} 1... e6 {[%clk 0:02:37.7]} 2. d4 {[%clk 0:03:00.4]}
2... d5 {[%clk 0:02:38.2]} 3. Nc3 {[%clk 0:02:59.8]} 3... Nf6 {[%clk 0:02:38.6]}
4. Bg5 {[%clk 0:02:58.5]} 4... dxe4 {[%clk 0:02:38.2]} 5. Nxe4 {[%clk
0:02:58.6]} 5... Be7 {[%clk 0:02:38.7]} 6. Bxf6 {[%clk 0:02:59.2]} 6... gxf6
{[%clk 0:02:38.3]} 7. Nf3 {[%clk 0:02:58]} 7... f5 {[%clk 0:02:38.4]} 8. Nc3
{[%clk 0:02:57.5]} 8... a6 {[%clk 0:02:37.9]} 9. Qd2 {[%clk 0:02:57.1]} 9... b5
{[%clk 0:02:37.5]} 10. O-O-O {[%clk 0:02:56.6]} 10... b4 {[%clk 0:02:28.9]} 11.
Na4 {[%clk 0:02:52.7]} 11... Qd5 {[%clk 0:02:25.5]} 12. b3 {[%clk 0:02:48.4]}
12... Bd7 {[%clk 0:02:15.5]} 13. Bc4 {[%clk 0:02:40.9]} 13... Qa5 {[%clk
0:02:02.6]} 14. d5 {[%clk 0:02:34.1]} 14... Bxa4 {[%clk 0:01:47.4]} 15. dxe6
{[%clk 0:02:26.1]} 15... fxe6 {[%clk 0:01:22]} 16. bxa4 {[%clk 0:02:22.4]} 16...
Qxa4 {[%clk 0:01:15.7]} 17. Ne5 {[%clk 0:02:01]} 17... Qa3+ {[%clk 0:00:48.5]}
18. Kb1 {[%clk 0:02:00]} 18... Qc3 {[%clk 0:00:46.3]} 19. Qxc3 {[%clk
0:01:52.5]} 19... bxc3 {[%clk 0:00:47.2]} 20. Bxe6 {[%clk 0:01:52.6]} 20... Bf6
{[%clk 0:00:38.6]} 21. Rhe1 {[%clk 0:01:50.7]} 21... Kf8 {[%clk 0:00:32.4]} 22.
Nd7+ {[%clk 0:01:35.3]} 22... Nxd7 {[%clk 0:00:32.2]} 23. Rxd7 {[%clk
0:01:35.9]} 23... Rb8+ {[%clk 0:00:31.8]} 24. Bb3 {[%clk 0:01:36.5]} 24... Rxb3+
{[%clk 0:00:04]} 25. axb3 {[%clk 0:01:34.5]} 25... h5 {[%clk 0:00:02.7]} 26. Re6
{[%clk 0:01:22.8]} 26... Rh6 {[%clk 0:00:03.6]} 27. Rxc7 {[%clk 0:01:21]} 27...
Bg5 {[%clk 0:00:03.7]} 28. Rxh6 {[%clk 0:01:19.9]} 28... Bxh6 {[%clk 0:00:04.6]}
29. Rxc3 {[%clk 0:01:19.3]} 29... Bd2 {[%clk 0:00:05.5]} 30. Rc5 {[%clk
0:01:18.4]} 30... Be1 {[%clk 0:00:06.4]} 31. Rxf5+ {[%clk 0:01:18]} 1-0

[Event "Late-Titled-Tuesday-Blitz-February-27-2024"]
[Site "Chess.com"]
[Date "2024.02.27"]
[Round "1"]
[White "Sokoloco"]
[Black "vidavi"]
[Result "1-0"]
[WhiteElo "2788"]
[BlackElo "2451"]
[TimeControl "180+1"]
[EndTime "14:05:55 PST"]
[Termination "Sokoloco won by resignation"]

1. b3 {[%clk 0:03:00.9]} 1... d5 {[%clk 0:02:57.7]} 2. Nf3 {[%clk 0:03:00.8]}
2... c5 {[%clk 0:02:58]} 3. e3 {[%clk 0:03:01]} 3... Nc6 {[%clk 0:02:58.4]} 4.
Bb2 {[%clk 0:03:00.1]} 4... f6 {[%clk 0:02:58.6]} 5. d4 {[%clk 0:02:59.5]} 5...
e6 {[%clk 0:02:57.8]} 6. c4 {[%clk 0:02:46.6]} 6... cxd4 {[%clk 0:02:56.1]} 7.
exd4 {[%clk 0:02:39.9]} 7... Bb4+ {[%clk 0:02:54.4]} 8. Nc3 {[%clk 0:02:40.3]}
8... Nge7 {[%clk 0:02:53.4]} 9. Bd3 {[%clk 0:02:19.5]} 9... O-O {[%clk
0:02:23.1]} 10. O-O {[%clk 0:02:19.3]} 10... Bd7 {[%clk 0:02:20.1]} 11. Qc2
{[%clk 0:02:03.6]} 11... g6 {[%clk 0:02:15.3]} 12. a3 {[%clk 0:02:02.4]} 12...
Ba5 {[%clk 0:02:12.3]} 13. b4 {[%clk 0:02:02.3]} 13... Bb6 {[%clk 0:02:05.1]}
14. c5 {[%clk 0:02:02.1]} 14... Bc7 {[%clk 0:02:04.9]} 15. b5 {[%clk 0:01:57.1]}
15... Na5 {[%clk 0:02:02.8]} 16. Rfe1 {[%clk 0:01:49.8]} 16... Rc8 {[%clk
0:01:47.7]} 17. a4 {[%clk 0:01:38.7]} 17... Bb8 {[%clk 0:01:31]} 18. Ba3 {[%clk
0:01:39]} 18... Re8 {[%clk 0:01:25.4]} 19. Bb4 {[%clk 0:01:37.8]} 19... Nf5
{[%clk 0:01:03.4]} 20. Qa2 {[%clk 0:01:19.7]} 20... Kg7 {[%clk 0:00:50.1]} 21.
Re2 {[%clk 0:01:20.3]} 21... e5 {[%clk 0:00:17.4]} 22. dxe5 {[%clk 0:01:13.8]}
22... Bxe5 {[%clk 0:00:13.9]} 23. Nxe5 {[%clk 0:01:13.5]} 23... Rxe5 {[%clk
0:00:13.2]} 24. Rxe5 {[%clk 0:01:13.6]} 24... fxe5 {[%clk 0:00:13.6]} 25. Qxd5
{[%clk 0:01:14.3]} 25... Qc7 {[%clk 0:00:05.8]} 26. Bxa5 {[%clk 0:01:13]} 26...
Qxa5 {[%clk 0:00:05.3]} 27. Qxd7+ {[%clk 0:01:13.2]} 27... Ne7 {[%clk 0:00:05]}
1-0

[Event "Late-Titled-Tuesday-Blitz-February-27-2024"]
[Site "Chess.com"]
[Date "2024.02.27"]
[Round "1"]
[White "FabianoCaruana"]
[Black "NLLO777"]
[Result "1-0"]
[WhiteElo "3058"]
[BlackElo "2516"]
[TimeControl "180+1"]
[EndTime "14:05:57 PST"]
[Termination "FabianoCaruana won by resignation"]

1. b3 {[%clk 0:03:00.2]} 1... Nf6 {[%clk 0:02:59.1]} 2. Bb2 {[%clk 0:03:00.4]}
2... e6 {[%clk 0:02:56.4]} 3. g3 {[%clk 0:02:59.5]} 3... d5 {[%clk 0:02:56.3]}
4. Bg2 {[%clk 0:02:59.7]} 4... Be7 {[%clk 0:02:56.3]} 5. e3 {[%clk 0:02:59.9]}
5... O-O {[%clk 0:02:56.8]} 6. Ne2 {[%clk 0:03:00.4]} 6... b6 {[%clk 0:02:57.4]}
7. O-O {[%clk 0:03:00.5]} 7... Bb7 {[%clk 0:02:57.7]} 8. c4 {[%clk 0:03:01.2]}
8... c5 {[%clk 0:02:55.5]} 9. Nbc3 {[%clk 0:03:01.2]} 9... Qd7 {[%clk
0:02:44.1]} 10. cxd5 {[%clk 0:02:58.8]} 10... Nxd5 {[%clk 0:02:44.2]} 11. Nxd5
{[%clk 0:02:58.9]} 11... Bxd5 {[%clk 0:02:45.1]} 12. Bxd5 {[%clk 0:02:57.9]}
12... Qxd5 {[%clk 0:02:46]} 13. d4 {[%clk 0:02:57.7]} 13... Nc6 {[%clk
0:02:45.7]} 14. Nf4 {[%clk 0:02:52.6]} 14... Qe4 {[%clk 0:02:38.6]} 15. dxc5
{[%clk 0:02:45.4]} 15... Bxc5 {[%clk 0:02:38.4]} 16. Rc1 {[%clk 0:02:21.3]}
16... Rfd8 {[%clk 0:02:23.7]} 17. Qe2 {[%clk 0:02:20.2]} 17... Rac8 {[%clk
0:02:14.1]} 18. Rc4 {[%clk 0:02:17.9]} 18... Qf5 {[%clk 0:02:10.3]} 19. Rfc1
{[%clk 0:02:14.2]} 19... a5 {[%clk 0:01:57.8]} 20. a3 {[%clk 0:02:10.2]} 20...
Ra8 {[%clk 0:01:49.8]} 21. h4 {[%clk 0:02:00.4]} 21... h6 {[%clk 0:01:49.1]} 22.
g4 {[%clk 0:01:44.6]} 22... Qh7 {[%clk 0:01:46.3]} 23. Qf3 {[%clk 0:01:44.6]}
23... Ne7 {[%clk 0:01:37.8]} 24. Nh5 {[%clk 0:01:39.4]} 24... Ng6 {[%clk
0:01:06]} 25. Bxg7 {[%clk 0:01:34.3]} 25... Be7 {[%clk 0:00:49.5]} 26. Bf6
{[%clk 0:01:33.4]} 26... Kf8 {[%clk 0:00:38.1]} 27. Rc7 {[%clk 0:01:29]} 27...
Bxf6 {[%clk 0:00:30.3]} 28. Qxf6 {[%clk 0:01:19.2]} 28... Kg8 {[%clk 0:00:21.4]}
29. Qxd8+ {[%clk 0:01:13.7]} 29... Rxd8 {[%clk 0:00:20.6]} 30. Nf6+ {[%clk
0:01:14.4]} 30... Kg7 {[%clk 0:00:21.3]} 31. Nxh7 {[%clk 0:01:15.3]} 31... Kxh7
{[%clk 0:00:22.2]} 32. Rxf7+ {[%clk 0:01:14.8]} 32... Kg8 {[%clk 0:00:23.1]} 33.
Rf6 {[%clk 0:01:12.6]} 33... Nxh4 {[%clk 0:00:24]} 34. Rxh6 {[%clk 0:01:09.2]}
34... Nf3+ {[%clk 0:00:20.8]} 35. Kg2 {[%clk 0:01:09.5]} 35... Ne5 {[%clk
0:00:21.6]} 36. Rxe6 {[%clk 0:01:09]} 1-0

[Event "Late-Titled-Tuesday-Blitz-February-27-2024"]
[Site "Chess.com"]
[Date "2024.02.27"]
[Round "1"]
[White "GmSergioBarrientos"]
[Black "picturesquecheck"]
[Result "1/2-1/2"]
[WhiteElo "2715"]
[BlackElo "2422"]
[TimeControl "180+1"]
[EndTime "14:05:58 PST"]
[Termination "Game drawn by repetition"]

1. d4 {[%clk 0:02:56.1]} 1... d5 {[%clk 0:02:59.7]} 2. c4 {[%clk 0:02:56.1]}
2... e6 {[%clk 0:02:59.6]} 3. Nf3 {[%clk 0:02:56.5]} 3... Nf6 {[%clk 0:02:59.8]}
4. g3 {[%clk 0:02:56.7]} 4... dxc4 {[%clk 0:02:58.9]} 5. Qa4+ {[%clk 0:02:56]}
5... Nbd7 {[%clk 0:02:58.3]} 6. Bg2 {[%clk 0:02:56]} 6... Bd6 {[%clk 0:02:54.8]}
7. O-O {[%clk 0:02:55.3]} 7... a6 {[%clk 0:02:55.2]} 8. Qxc4 {[%clk 0:02:55]}
8... b5 {[%clk 0:02:55.1]} 9. Qc2 {[%clk 0:02:54.1]} 9... Bb7 {[%clk 0:02:55]}
10. Nbd2 {[%clk 0:02:53.5]} 10... c5 {[%clk 0:02:52]} 11. e4 {[%clk 0:02:51.3]}
11... cxd4 {[%clk 0:02:51]} 12. Nxd4 {[%clk 0:02:45.9]} 12... Rc8 {[%clk
0:02:49.3]} 13. Qd1 {[%clk 0:02:44.3]} 13... Qb6 {[%clk 0:02:34.9]} 14. N4b3
{[%clk 0:02:36]} 14... O-O {[%clk 0:02:33.6]} 15. Qe2 {[%clk 0:02:34.1]} 15...
e5 {[%clk 0:02:26.6]} 16. Rd1 {[%clk 0:02:30]} 16... Rfd8 {[%clk 0:02:25.3]} 17.
Nf1 {[%clk 0:02:29.8]} 17... Nc5 {[%clk 0:02:24.8]} 18. Be3 {[%clk 0:02:24.1]}
18... Be7 {[%clk 0:02:09.7]} 19. Rxd8+ {[%clk 0:02:18.8]} 19... Qxd8 {[%clk
0:02:07.5]} 20. Rd1 {[%clk 0:02:16.9]} 20... Qf8 {[%clk 0:02:06.6]} 21. Nxc5
{[%clk 0:02:01.8]} 21... Bxc5 {[%clk 0:02:05.8]} 22. Bg5 {[%clk 0:02:02.1]}
22... Be7 {[%clk 0:01:58.8]} 23. Ne3 {[%clk 0:01:52.2]} 23... h6 {[%clk
0:01:35.8]} 24. Bxf6 {[%clk 0:01:49.4]} 24... Bxf6 {[%clk 0:01:36.4]} 25. Nf5
{[%clk 0:01:48.4]} 25... Rd8 {[%clk 0:01:32.7]} 26. Rc1 {[%clk 0:01:44.8]} 26...
Bc8 {[%clk 0:01:28.5]} 27. Rc6 {[%clk 0:01:40.3]} 27... Bxf5 {[%clk 0:01:28.1]}
28. exf5 {[%clk 0:01:40.5]} 28... Rc8 {[%clk 0:01:27.6]} 29. Rxa6 {[%clk
0:01:37.2]} 29... b4 {[%clk 0:01:17.3]} 30. Bd5 {[%clk 0:01:33]} 30... Re8
{[%clk 0:01:13.2]} 31. Qe4 {[%clk 0:01:31.4]} 31... Qc5 {[%clk 0:01:09.5]} 32.
Kg2 {[%clk 0:01:29.8]} 32... Qd4 {[%clk 0:01:07]} 33. b3 {[%clk 0:01:25.6]}
33... Rd8 {[%clk 0:01:03.2]} 34. Bc6 {[%clk 0:01:13.9]} 34... Qc3 {[%clk
0:01:00.7]} 35. Ra7 {[%clk 0:01:11.2]} 35... Rd4 {[%clk 0:00:53.9]} 36. Qf3
{[%clk 0:01:08.4]} 36... Rd3 {[%clk 0:00:48]} 37. Qe4 {[%clk 0:01:02.5]} 37...
Rd4 {[%clk 0:00:48.2]} 38. Ra8+ {[%clk 0:01:00]} 38... Kh7 {[%clk 0:00:47.8]}
39. Qf3 {[%clk 0:00:58.9]} 39... Rd3 {[%clk 0:00:47.9]} 40. Qe4 {[%clk
0:00:55.7]} 40... Rd4 {[%clk 0:00:48]} 41. Qf3 {[%clk 0:00:56]} 41... Rd3 {[%clk
0:00:48.1]} 42. Qe4 {[%clk 0:00:56.4]} 42... Rd4 {[%clk 0:00:48.2]} 1/2-1/2

[Event "Late-Titled-Tuesday-Blitz-February-27-2024"]
[Site "Chess.com"]
[Date "2024.02.27"]
[Round "1"]
[White "tandaleo"]
[Black "dropstoneDP"]
[Result "0-1"]
[WhiteElo "2507"]
[BlackElo "2994"]
[TimeControl "180+1"]
[EndTime "14:06:05 PST"]
[Termination "dropstoneDP won by resignation"]

1. d4 {[%clk 0:03:00.9]} 1... d5 {[%clk 0:02:59.6]} 2. Nf3 {[%clk 0:02:58.4]}
2... Nf6 {[%clk 0:02:59.9]} 3. e3 {[%clk 0:02:47.9]} 3... c5 {[%clk 0:02:56.1]}
4. dxc5 {[%clk 0:02:47.8]} 4... e6 {[%clk 0:02:52.7]} 5. b4 {[%clk 0:02:48]}
5... a5 {[%clk 0:02:52.9]} 6. c3 {[%clk 0:02:48.3]} 6... axb4 {[%clk 0:02:53.5]}
7. cxb4 {[%clk 0:02:48.8]} 7... b6 {[%clk 0:02:54.2]} 8. Bb5+ {[%clk 0:02:49.1]}
8... Bd7 {[%clk 0:02:54.8]} 9. Bxd7+ {[%clk 0:02:49.6]} 9... Nbxd7 {[%clk
0:02:55.5]} 10. a4 {[%clk 0:02:49.9]} 10... bxc5 {[%clk 0:02:55.9]} 11. b5
{[%clk 0:02:50.4]} 11... Bd6 {[%clk 0:02:56.5]} 12. Bb2 {[%clk 0:02:47]} 12...
O-O {[%clk 0:02:56.3]} 13. O-O {[%clk 0:02:46.8]} 13... Ra7 {[%clk 0:02:56.8]}
14. Nbd2 {[%clk 0:02:43.1]} 14... Qa8 {[%clk 0:02:56.3]} 15. Nc4 {[%clk
0:02:25.7]} 15... dxc4 {[%clk 0:02:52.6]} 16. Qxd6 {[%clk 0:02:18.2]} 16... Rxa4
{[%clk 0:02:52.6]} 17. Rxa4 {[%clk 0:02:15.6]} 17... Qxa4 {[%clk 0:02:53.5]} 18.
Bxf6 {[%clk 0:02:14.6]} 18... Nxf6 {[%clk 0:02:54.4]} 19. Qxc5 {[%clk
0:02:14.8]} 19... Rb8 {[%clk 0:02:51.5]} 20. Rb1 {[%clk 0:01:45]} 20... Qc2
{[%clk 0:02:45.9]} 21. Qb4 {[%clk 0:01:27.1]} 21... Nd5 {[%clk 0:02:42.8]} 22.
Qe1 {[%clk 0:01:20.7]} 22... Nc3 {[%clk 0:02:40.2]} 23. Ra1 {[%clk 0:01:13.4]}
23... Qb2 {[%clk 0:02:12.9]} 24. b6 {[%clk 0:00:25.2]} 24... g6 {[%clk
0:02:08.3]} 25. Nd2 {[%clk 0:00:15.3]} 25... Rxb6 {[%clk 0:01:16.5]} 26. Nxc4
{[%clk 0:00:14]} 26... Qxa1 {[%clk 0:01:17.1]} 27. Qxa1 {[%clk 0:00:13.6]} 27...
Rb1+ {[%clk 0:01:17.8]} 28. Qxb1 {[%clk 0:00:13.9]} 28... Nxb1 {[%clk
0:01:18.7]} 29. Ne5 {[%clk 0:00:13.9]} 29... Nc3 {[%clk 0:01:19]} 30. Nf3 {[%clk
0:00:14.5]} 30... Kg7 {[%clk 0:01:19]} 31. Kf1 {[%clk 0:00:14.9]} 31... Kf6
{[%clk 0:01:18.1]} 32. g3 {[%clk 0:00:14.4]} 32... e5 {[%clk 0:01:18.2]} 33. Kg2
{[%clk 0:00:14.9]} 33... Ne4 {[%clk 0:01:17.6]} 34. Ne1 {[%clk 0:00:14.7]} 34...
h5 {[%clk 0:01:17.1]} 35. Kf3 {[%clk 0:00:15.2]} 35... Nc3 {[%clk 0:01:16.8]}
36. Ng2 {[%clk 0:00:13.3]} 36... e4+ {[%clk 0:01:15.8]} 0-1

[Event "Late-Titled-Tuesday-Blitz-February-27-2024"]
[Site "Chess.com"]
[Date "2024.02.27"]
[Round "1"]
[White "delqate"]
[Black "dawid498"]
[Result "0-1"]
[WhiteElo "2404"]
[BlackElo "2708"]
[TimeControl "180+1"]
[EndTime "14:06:05 PST"]
[Termination "dawid498 won by resignation"]

1. e4 {[%clk 0:03:00.9]} 1... c5 {[%clk 0:02:58.4]} 2. Nf3 {[%clk 0:03:01.1]}
2... g6 {[%clk 0:02:59]} 3. c3 {[%clk 0:03:01.1]} 3... Bg7 {[%clk 0:02:58.8]} 4.
d4 {[%clk 0:03:01.1]} 4... cxd4 {[%clk 0:02:59.7]} 5. cxd4 {[%clk 0:03:00.4]}
5... d5 {[%clk 0:03:00.3]} 6. e5 {[%clk 0:02:59.1]} 6... Bg4 {[%clk 0:03:00.4]}
7. Nbd2 {[%clk 0:02:55.1]} 7... Nc6 {[%clk 0:02:58.3]} 8. h3 {[%clk 0:02:55.5]}
8... Bxf3 {[%clk 0:02:58.7]} 9. Nxf3 {[%clk 0:02:54.9]} 9... e6 {[%clk
0:02:57.6]} 10. a3 {[%clk 0:02:53.7]} 10... Nge7 {[%clk 0:02:57.6]} 11. Be2
{[%clk 0:02:39.8]} 11... O-O {[%clk 0:02:57.7]} 12. O-O {[%clk 0:02:38]} 12...
Nf5 {[%clk 0:02:51.1]} 13. b4 {[%clk 0:02:32.1]} 13... a6 {[%clk 0:02:45]} 14.
g4 {[%clk 0:02:20.7]} 14... Nfe7 {[%clk 0:02:30.8]} 15. Be3 {[%clk 0:02:12.7]}
15... f6 {[%clk 0:02:26.9]} 16. exf6 {[%clk 0:02:12.2]} 16... Bxf6 {[%clk
0:02:27.8]} 17. Qd2 {[%clk 0:02:10.8]} 17... Qd7 {[%clk 0:01:49.1]} 18. Bh6
{[%clk 0:02:10.1]} 18... Bg7 {[%clk 0:01:44.1]} 19. Rfe1 {[%clk 0:02:04.9]}
19... Rae8 {[%clk 0:01:29.4]} 20. Kg2 {[%clk 0:01:39.9]} 20... Nc8 {[%clk
0:01:26.6]} 21. Bf1 {[%clk 0:01:28.9]} 21... Qf7 {[%clk 0:01:12.1]} 22. Be2
{[%clk 0:01:10]} 22... Bxh6 {[%clk 0:01:06.7]} 23. Qxh6 {[%clk 0:01:10.9]} 23...
Nxd4 {[%clk 0:01:07.2]} 24. Ng5 {[%clk 0:00:26.7]} 24... Qg7 {[%clk 0:01:04.5]}
25. Qxg7+ {[%clk 0:00:23.7]} 25... Kxg7 {[%clk 0:01:05.4]} 26. Bd3 {[%clk
0:00:21.4]} 26... h6 {[%clk 0:01:02.6]} 27. Rac1 {[%clk 0:00:08.1]} 27... hxg5
{[%clk 0:01:01.6]} 0-1

[Event "Late-Titled-Tuesday-Blitz-February-27-2024"]
[Site "Chess.com"]
[Date "2024.02.27"]
[Round "1"]
[White "SEBAZZANO"]
[Black "CrushingKings"]
[Result "0-1"]
[WhiteElo "2304"]
[BlackElo "2621"]
[TimeControl "180+1"]
[EndTime "14:06:07 PST"]
[Termination "CrushingKings won by resignation"]

1. d4 {[%clk 0:03:00.9]} 1... g6 {[%clk 0:02:57.5]} 2. e4 {[%clk 0:02:59]} 2...
Bg7 {[%clk 0:02:58.4]} 3. Nc3 {[%clk 0:02:57.5]} 3... c6 {[%clk 0:02:55.9]} 4.
Be3 {[%clk 0:02:53.3]} 4... d5 {[%clk 0:02:56]} 5. e5 {[%clk 0:02:52.5]} 5... f6
{[%clk 0:02:55.6]} 6. exf6 {[%clk 0:02:41.3]} 6... Nxf6 {[%clk 0:02:54.8]} 7.
Nf3 {[%clk 0:02:39.3]} 7... O-O {[%clk 0:02:53.1]} 8. Be2 {[%clk 0:02:34.8]}
8... Bg4 {[%clk 0:02:33.7]} 9. h3 {[%clk 0:02:32]} 9... Bxf3 {[%clk 0:02:33]}
10. Bxf3 {[%clk 0:02:32.9]} 10... Nbd7 {[%clk 0:02:32.8]} 11. O-O {[%clk
0:02:21.1]} 11... e5 {[%clk 0:02:31.1]} 12. dxe5 {[%clk 0:02:20.3]} 12... Nxe5
{[%clk 0:02:32]} 13. Bd4 {[%clk 0:02:07.5]} 13... Nxf3+ {[%clk 0:02:30.4]} 14.
Qxf3 {[%clk 0:02:08.4]} 14... Nh5 {[%clk 0:02:15.2]} 15. Qg4 {[%clk 0:01:50.3]}
15... Bxd4 {[%clk 0:02:09.5]} 16. Qxd4 {[%clk 0:01:49.6]} 16... Nf4 {[%clk
0:02:10.1]} 17. Kh2 {[%clk 0:01:10.4]} 17... Qg5 {[%clk 0:01:51.2]} 18. g3
{[%clk 0:01:04.4]} 18... Ne6 {[%clk 0:01:51]} 19. Qg4 {[%clk 0:01:02]} 19...
Qxg4 {[%clk 0:01:38.4]} 20. hxg4 {[%clk 0:01:02.9]} 20... Nd4 {[%clk 0:01:39.3]}
21. Rac1 {[%clk 0:00:58.9]} 21... Nf3+ {[%clk 0:01:35]} 22. Kg2 {[%clk
0:00:58.2]} 22... Rae8 {[%clk 0:01:35.9]} 23. Rcd1 {[%clk 0:00:46.5]} 23... d4
{[%clk 0:01:32]} 24. Na4 {[%clk 0:00:33.3]} 24... Re2 {[%clk 0:01:13.7]} 25. Rd3
{[%clk 0:00:23.3]} 25... Ne1+ {[%clk 0:01:09]} 26. Rxe1 {[%clk 0:00:23.9]} 26...
Rxe1 {[%clk 0:01:09.9]} 27. Rxd4 {[%clk 0:00:19.7]} 27... Re2 {[%clk 0:01:09.9]}
28. Rf4 {[%clk 0:00:06.5]} 28... Rxf4 {[%clk 0:01:07.4]} 29. gxf4 {[%clk
0:00:07.4]} 29... Rxc2 {[%clk 0:01:07.8]} 30. a3 {[%clk 0:00:06.6]} 30... b5
{[%clk 0:01:06]} 0-1

[Event "Late-Titled-Tuesday-Blitz-February-27-2024"]
[Site "Chess.com"]
[Date "2024.02.27"]
[Round "1"]
[White "MiguelEduardoGB"]
[Black "Petukhov_Dmitry"]
[Result "0-1"]
[WhiteElo "2143"]
[BlackElo "2548"]
[TimeControl "180+1"]
[EndTime "14:06:07 PST"]
[Termination "Petukhov_Dmitry won on time"]

1. Nf3 {[%clk 0:02:57.7]} 1... Nf6 {[%clk 0:02:59.8]} 2. e3 {[%clk 0:02:56.8]}
2... g6 {[%clk 0:02:59.9]} 3. b3 {[%clk 0:02:57.2]} 3... Bg7 {[%clk 0:03:00.3]}
4. Bb2 {[%clk 0:02:57.8]} 4... O-O {[%clk 0:02:59.5]} 5. d4 {[%clk 0:02:57.7]}
5... d6 {[%clk 0:02:58.8]} 6. Nbd2 {[%clk 0:02:58]} 6... c6 {[%clk 0:02:57.4]}
7. Be2 {[%clk 0:02:56.5]} 7... Nbd7 {[%clk 0:02:57.3]} 8. O-O {[%clk 0:02:54.6]}
8... Re8 {[%clk 0:02:57.5]} 9. c4 {[%clk 0:02:53.1]} 9... e5 {[%clk 0:02:55.4]}
10. Ne1 {[%clk 0:02:49]} 10... e4 {[%clk 0:02:54.8]} 11. Qc2 {[%clk 0:02:42.4]}
11... Qe7 {[%clk 0:02:42.6]} 12. b4 {[%clk 0:02:21.6]} 12... d5 {[%clk
0:02:42.6]} 13. cxd5 {[%clk 0:02:14.9]} 13... cxd5 {[%clk 0:02:41.3]} 14. Qb3
{[%clk 0:02:14.4]} 14... Nb6 {[%clk 0:02:34.9]} 15. a4 {[%clk 0:02:10.8]} 15...
Be6 {[%clk 0:02:32.3]} 16. a5 {[%clk 0:02:06.8]} 16... Nc8 {[%clk 0:02:31.4]}
17. b5 {[%clk 0:02:05.4]} 17... Nd6 {[%clk 0:02:30.8]} 18. Ba3 {[%clk
0:02:05.7]} 18... Qd7 {[%clk 0:02:30.7]} 19. Bxd6 {[%clk 0:02:05.4]} 19... Qxd6
{[%clk 0:02:30.6]} 20. Nc2 {[%clk 0:01:42.9]} 20... Bg4 {[%clk 0:02:28.3]} 21.
Rfe1 {[%clk 0:01:27.6]} 21... Bxe2 {[%clk 0:02:27.6]} 22. Rxe2 {[%clk
0:01:28.5]} 22... Ng4 {[%clk 0:02:26.9]} 23. Nf1 {[%clk 0:01:28.3]} 23... h5
{[%clk 0:02:22.7]} 24. Nb4 {[%clk 0:01:23.8]} 24... Red8 {[%clk 0:02:21.7]} 25.
Rc1 {[%clk 0:01:15.7]} 25... Bf8 {[%clk 0:02:21.3]} 26. Rb2 {[%clk 0:00:57.4]}
26... Rac8 {[%clk 0:02:11.3]} 27. Rxc8 {[%clk 0:00:54]} 27... Rxc8 {[%clk
0:02:12.2]} 28. Qxd5 {[%clk 0:00:35.2]} 28... Rc1 {[%clk 0:01:54.2]} 29. Qxd6
{[%clk 0:00:15.9]} 29... Bxd6 {[%clk 0:01:55.1]} 30. g3 {[%clk 0:00:16.4]} 30...
Bxb4 {[%clk 0:01:48.1]} 31. Rxb4 {[%clk 0:00:16.1]} 31... Rc2 {[%clk 0:01:49]}
32. d5 {[%clk 0:00:08.3]} 32... Nxf2 {[%clk 0:01:47.2]} 33. d6 {[%clk
0:00:05.2]} 33... Kf8 {[%clk 0:01:47]} 34. d7 {[%clk 0:00:04]} 34... Ke7 {[%clk
0:01:46.8]} 35. Rd4 {[%clk 0:00:04.5]} 35... Kd8 {[%clk 0:01:46.8]} 36. Rd2
{[%clk 0:00:04.1]} 36... Rxd2 {[%clk 0:01:37.9]} 0-1